Cogmind - Beta 11 @@@ ROGUE MODE // 2022.04.20 @ 20:47:38 Player: aperiodic Result: Destroyed by 7V-RTL with Dispersion Rifle Performance ------------- Evolutions (1) 500 Regions Visited (6) 1200 Robots Destroyed (117) 585 Value Destroyed (1650) 1650 Prototype IDs (39) 780 Alien Tech Used (0) 0 Bonus (523) 523 TOTAL SCORE: 5238 Bonus ------- High Alert Combat Kills 8 Follower Combat Kills 295 Aligned with FarCom 300 Friendly Fire -80 Cogmind --------- Core Integrity 0/400 Matter 37/300 Energy 200/200 System Corruption 6% Temperature Cool (9) Movement Treading (158) Location -8/Mines Parts ------- > --- POWER (1) -------- Cold Fusion Reactor > --- PROPULSION (3) --- Improved Treads Armored Treads Advanced Treads > --- UTILITY (3) ------ Experimental Core Analyzer Improved Armor Integrity Analyzer Reflective Plating > --- WEAPON (2) ------- Improved Assault Rifle > --- INVENTORY (5) ---- Lightpack 2.0 Hacking Suite 8R-AWN's Boregun Peak State ------------ > --- POWER ------------ Cold Fusion Reactor > --- PROPULSION ------- Improved Treads Armored Treads Advanced Treads > --- UTILITY ---------- Huge Storage Unit Reflective Plating Hardlight Generator > --- WEAPON ----------- Latent Energy Streamer 8R-AWN's Boregun > --- INVENTORY -------- Makeshift Power Source Armored Wheel Lightpack 2.0 Makeshift Sensor Array Experimental Targeting Computer Experimental Core Analyzer Improved Armor Integrity Analyzer Advanced Weapon Cycler Improved Weapon Shielding Light Armor Plating Light Armor Plating Hacking Suite Hacking Suite Advanced Component Analysis Suite System Purifier Long-range Tractor Beam Improved Trap Extractor Supersonic Drone Bay AS-neutralizer No. 17b Improved Assault Rifle Improved Assault Rifle Rocket Launcher Maul [Rating: 54] Favorites ----------- Power Heavy Ion Engine Engine Heavy Ion Engine Reactor Cold Fusion Reactor Propulsion Armored Wheel Treads Light Treads Leg Advanced Myomer Leg Wheel Armored Wheel Utility Huge Storage Unit Device Hardlight Generator Storage Huge Storage Unit Processor Improved System Guard Protection Medium Armor Plating Weapon Small Laser Energy Gun Small Laser Energy Cannon Advanced Beam Cannon Ballistic Gun Improved Assault Rifle Ballistic Cannon Light Cannon Launcher Rocket Launcher Impact Weapon Maul Special Melee Weapon Improved Datajack Build | -11 -10 -10 -9 -9 -9 -8 ------- Run | Scr Mat Min Mat Min Exi Min Slots Evolved 2 | . . . 2 . . . Power . | . . . . . . . Propulsion 1 | . . . 1 . . . Utility 1 | . . . 1 . . . Weapon . | . . . . . . . Parts Attached 112 | 7 12 7 38 9 33 6 Power 9 | 1 1 . 6 . 1 . Engine 8 | 1 1 . 6 . . . Core . | . . . . . . . Reactor 1 | . . . . . 1 . Propulsion 28 | 2 6 1 10 . 9 . Treads 17 | 2 1 . 8 . 6 . Leg 1 | . . . . . 1 . Wheel 10 | . 5 1 2 . 2 . Hover . | . . . . . . . Flight . | . . . . . . . Utility 36 | 2 3 2 9 2 15 3 Device 16 | 1 . 2 4 1 8 . Storage 6 | 1 3 . 1 . 1 . Processor 4 | . . . . . 2 2 Hackware . | . . . . . . . Protection 10 | . . . 4 1 4 1 Artifact . | . . . . . . . Weapon 39 | 2 2 4 13 7 8 3 Energy Gun 2 | 1 . . 1 . . . Energy Cannon 2 | . . . 1 . . 1 Ballistic Gun 20 | 1 1 2 6 2 6 2 Ballistic Cannon 2 | . . . 2 . . . Launcher 6 | . 1 1 . 3 1 . Special Weapon . | . . . . . . . Impact Weapon 5 | . . . 2 2 1 . Slashing Weapon . | . . . . . . . Piercing Weapon . | . . . . . . . Special Melee Weapon 2 | . . 1 1 . . . Unidentified Prototypes 11 | . . . 3 . 7 1 Parts Lost 14 | . 1 2 6 4 . 1 Power 1 | . . . 1 . . . Propulsion 4 | . 1 1 1 1 . . Utility 7 | . . 1 3 2 . 1 Weapon 2 | . . . 1 1 . . Highest Loss Streak 2 | . 1 2 2 2 . 1 To Critical Strikes . | . . . . . . . Average Slot Usage (%) 95 | . 99 89 97 91 92 100 Engine 10 | . 14 14 10 11 6 . Reactor 1 | . . . . . 4 11 Treads 16 | . 1 . 23 8 19 33 Wheel 14 | . 26 27 9 22 11 . Device 8 | . 14 4 8 11 7 . Storage 11 | . 14 14 11 11 11 8 Protection 9 | . . . 11 9 10 19 Energy Gun 4 | . 14 14 3 4 . . Energy Cannon 1 | . . . 2 . . 5 Ballistic Gun 8 | . 13 11 5 2 13 16 Ballistic Cannon 2 | . . . 7 . . . Impact Weapon 3 | . . . 2 10 3 . Naked Turns . | . . . . . . . Heaviest Build 110 | 12 54 55 107 107 110 107 Greatest Support 69 | 40 40 20 69 24 66 65 Greatest Overweight (x) 5 | . 2 5 4 4 4 1 Average Overweight (x) 2 | . 1 2 2 3 3 . Largest Inventory Capacity 25 | 8 20 20 25 25 25 25 Average Capacity 22 | 7 18 20 22 25 25 19 Most Carried 25 | 6 20 20 25 25 25 25 Average Carried 20 | 4 15 19 21 23 20 19 Final Capacity 25 | 8 20 20 25 25 25 5 Final Carried 25 | 6 20 20 25 22 25 5 Class Distribution -------------------- 64% | Mutant 34% | Trapper-Mutant Dominant Class ---------------- Mutant | -10/Materials Mutant | -10/Mines Mutant | -9/Materials Trapper-Mutant | -9/Mines Mutant | -9/Exiles Mutant | -8/Mines Resources | -11 -10 -10 -9 -9 -9 -8 ----------- Run | Scr Mat Min Mat Min Exi Min Matter Collected 3660 | 300 464 94 1247 383 1142 30 Remotely . | . . . . . . . Salvage Created 3164 | 184 585 227 1293 422 423 30 Parts 250 | 16 40 13 92 15 71 3 Haulers Intercepted 8 | . 2 . 6 . . . Recyclers Shooed 4 | . . . 4 . . . Parts Field Recycled . | . . . . . . . Retrieved Matter . | . . . . . . . Parts Self-Destructed . | . . . . . . . Prevented . | . . . . . . . Kills | -11 -10 -10 -9 -9 -9 -8 ------- Run | Scr Mat Min Mat Min Exi Min Combat Hostiles Destroyed 68 | . 11 5 23 24 5 . Melee 6 | . . . 1 4 1 . Guns 21 | . 10 3 7 . 1 . Cannons 14 | . . . 14 . . . AOE 24 | . 1 2 . 18 3 . Classes Destroyed 15 | 2 5 . 4 2 2 . Worker 14 | . 3 1 4 5 . 1 Builder 5 | . . . 1 4 . . Tunneler 10 | 6 2 . . 2 . . Hauler 8 | . 2 . 6 . . . Recycler 9 | 1 1 1 4 2 . . Operator 3 | . . . 2 1 . . Turret 1 | . . . . . 1 . Watcher 7 | . 2 . 5 . . . Swarmer 25 | . 6 3 9 7 . . Grunt 15 | . 5 2 6 2 . . Brawler 1 | . . . 1 . . . Sentry 7 | . . . 7 . . . Demolisher 1 | . . . . 1 . . Zionite 8 | . . . . . 8 . Assembled 18 | . . . . 14 4 . Best Kill Streak 14 | 2 7 3 6 14 6 1 Combat Bots Only 13 | . 3 3 5 13 4 . Max Kills in Single Turn 6 | 1 1 2 2 6 2 1 Gunslinging . | . . . . . . . Exploded 5 | . 1 2 . 5 2 . Melee 1 | . . . 1 1 1 . Uniques/NPCs Destroyed 4 | . . . . . 4 . 8R-AWN (-9/Exiles) EX-HEX (-9/Exiles) EX-DEC (-9/Exiles) EX-BIN (-9/Exiles) Combat | -11 -10 -10 -9 -9 -9 -8 -------- Run | Scr Mat Min Mat Min Exi Min Damage Taken 4014 | . 422 199 1185 747 535 926 Core 557 | . 102 39 93 49 57 217 Absorbed by Shields 368 | . . . 56 152 160 . Redirected to Shielding 109 | . . . . . . 109 Regen/Repaired (Parts) 67 | . . . 67 . . . Core Remaining (%) 71 | 100 . 43 . . . . Volleys Fired 329 | 10 55 19 106 29 83 27 Largest 2 | 2 2 2 2 2 2 2 Hottest 89 | 60 60 60 88 89 53 60 Shots Fired 596 | 20 106 37 214 35 138 46 Gun 428 | 20 103 36 76 13 135 45 Cannon 139 | . . . 138 . . 1 Launcher 29 | . 3 1 . 22 3 . Special . | . . . . . . . Kinetic 454 | 10 52 18 190 4 135 45 Thermal 112 | 10 51 18 24 9 . . Explosive 29 | . 3 1 . 22 3 . Electromagnetic 1 | . . . . . . 1 Robot Hit Streak 39 | 7 11 5 17 4 39 12 Robot Miss Streak 6 | 1 4 3 4 3 6 3 Penetration Max . | . . . . . . . Secondary Targets 2 | . 2 . . . . . Max Gunslinging Chain 1 | . 1 . . . . . Shots Hit Robots 424 | 16 60 20 153 38 103 34 Core Hits 194 | 8 31 12 53 40 37 13 Critical Kills 7 | . . . . 2 4 1 Critical Parts Destroyed 25 | . . . 5 9 9 2 Critical Strikes 38 | . . . 7 12 15 4 Burn 1 | . . . . 1 . . Destroy 20 | . . . 1 . 15 4 Blast 2 | . . . 2 . . . Smash 15 | . . . 4 11 . . Melee Attacks 46 | . . . 17 28 1 . Impact 46 | . . . 17 28 1 . Slashing . | . . . . . . . Piercing . | . . . . . . . Sneak Attacks 18 | . . . 5 13 . . Combat Hostiles . | . . . . . . . Follow-up Attacks . | . . . . . . . Damage Inflicted 9797 | 184 900 368 3157 2869 1786 533 Guns 4071 | 184 666 206 868 102 1524 521 Cannons 1586 | . . . 1585 . . 1 Explosions 2012 | . 234 162 . 1383 222 11 Melee 2124 | . . . 700 1384 40 . Ramming 4 | . . . 4 . . . Kinetic 4739 | 97 302 77 2200 18 1524 521 Thermal 917 | 87 364 129 253 84 . . Explosive 2001 | . 234 162 . 1383 222 . Electromagnetic 12 | . . . . . . 12 Impact 2124 | . . . 700 1384 40 . Slashing . | . . . . . . . Piercing . | . . . . . . . Highest Corruption 6 | . . . 4 4 4 6 Average Corruption 4 | . . . 4 4 4 4 Corruption Purged . | . . . . . . . Corruption Blocked . | . . . . . . . Effects 128 | . . . 63 31 29 5 Message Errors 43 | . . . 21 12 9 1 Matter Fused 30 | . . . 16 8 5 1 Heat Flow Errors 10 | . . . 3 1 6 . Energy Discharges 18 | . . . 9 4 4 1 Parts Rejected 1 | . . . 1 . . . Data Loss (minor) 13 | . . . 7 2 3 1 Data Loss (major) 7 | . . . 2 3 2 . Misfires 5 | . . . 4 1 . . Weapon Failures 1 | . . . . . . 1 Overload Shots . | . . . . . . . Overflow Damage 1221 | . . 8 312 876 25 . Projectiles 6 | . . . 6 . . . Explosions 51 | . . 8 . 18 25 . Melee 1164 | . . . 306 858 . . Knockbacks 8 | . . . 3 5 . . Impact 5 | . . . . 5 . . Kinetic 3 | . . . 3 . . . Secondary . | . . . . . . . Self-Inflicted Damage 177 | . . 41 . 101 35 . Shots 5 | . . 1 . 3 1 . Rammed 3 | . . . 3 . . . Targets Rammed 3 | . . . 3 . . . Kicked . | . . . . . . . Crushed . | . . . . . . . Highest Temperature 270 | . 246 231 270 268 256 19 Average Temperature 70 | . 72 87 61 80 103 2 Received Heat Transfer 803 | . 165 96 330 59 . 153 Effects 2 | . . . 2 . . . Energy Bleed 1 | . . . 1 . . . Interference 1 | . . . 1 . . . Siege Activations . | . . . . . . . Robots Corrupted . | . . . . . . . Combat Hostiles . | . . . . . . . Parts Fried 22 | . . . 2 20 . . Impact Corruptions 33 | . . . 6 27 . . Robots Melted . | . . . . . . . Combat Hostiles . | . . . . . . . Parts Melted 4 | . 1 1 . 2 . . Heat Transferred 2095 | 200 800 300 536 259 . . Parts Sabotaged . | . . . . . . . Parts Stolen . | . . . . . . . Parts Stripped . | . . . . . . . Power Chain Reactions . | . . . . . . . Missiles Intercepted . | . . . . . . . Latent Energy Used 110 | . . . . . . 110 LE Corruption 2 | . . . . . . 2 Alert | -11 -10 -10 -9 -9 -9 -8 ------- Run | Scr Mat Min Mat Min Exi Min Peak Influence 606 | 35 235 234 314 606 . 19 Initial 121 | . 22 63 31 121 . . Average 200 | 16 90 146 186 432 . 8 Maximum Alert Level 2 | . 1 1 1 2 . . Low Security (%) 54 | 100 92 54 53 8 . 100 Level 1 33 | . 7 45 46 22 . . Level 2 12 | . . . . 68 . . Level 3 . | . . . . . . . Level 4 . | . . . . . . . Level 5 . | . . . . . . . High Security . | . . . . . . . Max Security . | . . . . . . . Squads Dispatched 7 | . 3 . 4 . . . Investigation 3 | . 2 . 1 . . . Extermination . | . . . . . . . Reinforcement 4 | . 1 . 3 . . . Assault . | . . . . . . . Garrison . | . . . . . . . Intercept . | . . . . . . . Searches Triggered . | . . . . . . . Construction Impeded . | . . . . . . . Haulers Reinforced . | . . . . . . . Active Scanning Responses . | . . . . . . . Cargo Convoy Interrupts . | . . . . . . . Stealth | -11 -10 -10 -9 -9 -9 -8 --------- Run | Scr Mat Min Mat Min Exi Min Distress Signals 5 | . 1 . 4 . . . Communications Jammed . | . . . . . . . Distress Signals . | . . . . . . . Times Spotted 121 | . 21 7 45 30 17 1 Peak Tracking Total 9 | . 5 3 7 8 9 1 Tactical Retreats 5 | . . . 1 2 2 . Traps | -11 -10 -10 -9 -9 -9 -8 ------- Run | Scr Mat Min Mat Min Exi Min Traps Triggered . | . . . . . . . Indirectly . | . . . . . . . Trap Hack Attempts 91 | . . 1 90 . . . Triggered . | . . . . . . . Disarmed . | . . . . . . . Reprogrammed 7 | . . 1 6 . . . Reused 6 | . . . . . 6 . Traps Extracted 7 | . . 1 6 . . . Installed 6 | . . . . . 6 . Triggered . | . . . . . . . Most Traps Carried 7 | . . 1 7 7 7 1 Exploded 2 | . . . . . 2 . Machines | -11 -10 -10 -9 -9 -9 -8 ---------- Run | Scr Mat Min Mat Min Exi Min Machines Disabled 20 | . . 1 3 1 15 . Max in Single Turn 2 | . . 1 1 1 2 . Machines Sabotaged . | . . . . . . . Garrisons Compromised . | . . . . . . . Overloaded Fab Kills . | . . . . . . . Hacking | -11 -10 -10 -9 -9 -9 -8 --------- Run | Scr Mat Min Mat Min Exi Min Machines Accessed 24 | . 7 2 13 . 2 . Terminals 15 | . 5 1 9 . . . Fabricators . | . . . . . . . Repair Stations 2 | . . . 2 . . . Recycling Units 3 | . 2 . 1 . . . Scanalyzers 1 | . . . 1 . . . Garrison Access . | . . . . . . . Total Hacks 62 | . 20 3 37 . 2 . Successful 43 | . 12 2 27 . 2 . Failed 18 | . 8 1 9 . . . Catastrophic 2 | . 2 . . . . . Database Lockouts 1 | . . . 1 . . . Manual 37 | . 15 2 19 . 1 . Terminals 49 | . 18 2 29 . . . Fabricators . | . . . . . . . Repair Stations 4 | . . . 4 . . . Recycling Units 4 | . 2 . 2 . . . Scanalyzers 2 | . . . 2 . . . Garrison Access . | . . . . . . . Terminal Hacks 25 | . 8 2 13 . 2 . Record 1 | . . . . . 1 . Part Schematic 2 | . 2 . . . . . Robot Analysis 5 | . 2 1 2 . . . Prototype ID Bank 4 | . 2 . 2 . . . Open Door 1 | . . 1 . . . . Branch Access Points 1 | . . . 1 . . . Terminal Index 2 | . 1 . 1 . . . Repair Station Index 1 | . . . 1 . . . Alert Level 2 | . . . 2 . . . Unreport Threat 1 | . . . 1 . . . Locate Traps 1 | . 1 . . . . . Transport Status 1 | . . . 1 . . . Hauler Manifests 1 | . . . 1 . . . Zone Layout 1 | . . . 1 . . . EX-Prototype ID Bank 1 | . . . . . 1 . Fabricator Hacks . | . . . . . . . Repair Station Hacks 4 | . . . 4 . . . Scan Component 2 | . . . 2 . . . Repair 2 | . . . 2 . . . Recycling Unit Hacks . | . . . . . . . Scanalyzer 2 | . . . 2 . . . Insert Component 1 | . . . 1 . . . Analyze 1 | . . . 1 . . . Garrison Access Hacks . | . . . . . . . Unauthorized Hacks 12 | . 4 . 8 . . . Terminals 9 | . 2 . 7 . . . Track 2 | . . . 2 . . . Assimilate 1 | . . . 1 . . . Botnet 3 | . 1 . 2 . . . Disrupt 1 | . . . 1 . . . Operators 2 | . 1 . 1 . . . Fabricators . | . . . . . . . Repair Stations . | . . . . . . . Recycling Units 3 | . 2 . 1 . . . Tunnel 3 | . 2 . 1 . . . Scanalyzers . | . . . . . . . Garrison Access . | . . . . . . . Data Cores Recovered . | . . . . . . . Used . | . . . . . . . Hacking Detections 13 | . 5 1 7 . . . Full Trace Events . | . . . . . . . Feedback Events . | . . . . . . . Feedback Blocked . | . . . . . . . Robot Schematics Acquired . | . . . . . . . Robots Built . | . . . . . . . Authchips . | . . . . . . . Time . | . . . . . . . Total Robot Build Rating . | . . . . . . . Part Schematics Acquired 3 | . 2 . 1 . . . Parts Built . | . . . . . . . Authchips . | . . . . . . . Time . | . . . . . . . Total Part Build Rating . | . . . . . . . Parts Repaired 2 | . . . 2 . . . Time 51 | . . . 51 . . . Parts Recycled . | . . . . . . . Recycled Matter . | . . . . . . . Retrieved Matter . | . . . . . . . Retrieved Components . | . . . . . . . Parts Scanalyzed 1 | . . . 1 . . . Part Schematics Acquired 1 | . . . 1 . . . Parts Damaged . | . . . . . . . Bothacking | -11 -10 -10 -9 -9 -9 -8 ------------ Run | Scr Mat Min Mat Min Exi Min Used RIF Installer . | . . . . . . . Robots Hacked . | . . . . . . . Non-combat . | . . . . . . . Combat . | . . . . . . . Robot Hacks Applied . | . . . . . . . Relay Couplers Released . | . . . . . . . Fabnet Peak Effective % . | . . . . . . . Robots Rewired . | . . . . . . . Allies Hacked . | . . . . . . . Hacks Repelled . | . . . . . . . Allies | -11 -10 -10 -9 -9 -9 -8 -------- Run | Scr Mat Min Mat Min Exi Min Total Allies 7 | . . 5 1 1 . . Largest Group 5 | . . 5 4 1 . . Highest-Rated Group 86 | . . 86 78 31 . . Highest-Rated Ally 31 | . . 31 31 31 . . Total Orders 2 | . . . 2 . . . STAY 1 | . . . 1 . . . FOLLOW 1 | . . . 1 . . . Ally Attacks 40 | . . 14 12 14 . . Total Damage 619 | . . 190 218 211 . . Kills 14 | . . 2 6 6 . . Allies Corrupted . | . . . . . . . Allies Melted . | . . . . . . . Intel | -11 -10 -10 -9 -9 -9 -8 ------- Run | Scr Mat Min Mat Min Exi Min Robot Analysis Total 5 | . 2 1 2 . . . Derelict Logs Recovered 3 | . . 2 . 1 . . Drone Launches . | . . . . . . . Drone Recoveries . | . . . . . . . Exploration | -11 -10 -10 -9 -9 -9 -8 ------------- Run | Scr Mat Min Mat Min Exi Min Turns Passed 9854 | 253 1103 729 3720 1268 2593 188 Spaces Moved 5106 | 129 700 511 1775 739 1242 10 Core 4 | 4 . . . . . . Treads 1490 | 125 24 . 923 . 408 10 Legs . | . . . . . . . Wheels 3612 | . 676 511 852 739 834 . Hover . | . . . . . . . Flight . | . . . . . . . Fastest Speed 50 | 50 105 110 150 135 135 158 Average Speed 156 | 156 117 110 172 148 180 182 Slowest Speed 243 | 160 240 155 240 150 243 238 Overloaded Moves . | . . . . . . . Propulsion Burnouts . | . . . . . . . Robots Hopped . | . . . . . . . Cave-ins Triggered . | . . . . . . . Exploration Rate (%) 68 | 7 89 99 95 95 90 4 Regions Visited 6 Branch Regions 4 Pre-discovered Areas 5 | . 2 1 1 . 1 . Known Exits Taken 1 | . . . 1 . . . Unknown Exits Taken 5 | 1 1 1 . 1 1 . Scrap Searched 4 | . . 1 . 3 . . Spaces Dug 8 | . . . 2 6 . . Terrain Destroyed 198 | . 10 5 2 137 20 24 Melee 2 | . . . 2 . . . Projectile 14 | . . . . . 4 10 AOE 179 | . 10 5 . 137 16 11 Terrain Rammed . | . . . . . . . Walls Destroyed . | . . . . . . . Machines Disabled . | . . . . . . . Actions | -11 -10 -10 -9 -9 -9 -8 --------- Run | Scr Mat Min Mat Min Exi Min Total 6281 | 157 875 645 2197 819 1457 131 Wait 446 | 6 89 96 114 15 40 86 Move 5100 | 128 699 510 1774 738 1241 10 Hop . | . . . . . . . Pick Up 71 | 6 16 6 24 . 19 . Fast Attach 38 | 7 . 1 14 . 15 1 Attach 17 | . 1 2 6 3 5 . Detach 6 | . . 1 2 . 2 1 Swap 58 | . 11 4 19 6 13 5 Drop 70 | . 4 5 28 . 32 1 Fire 329 | 10 55 19 106 29 83 27 Melee 46 | . . . 17 28 1 . Ram . | . . . . . . . Kick . | . . . . . . . Crush 3 | . . . 3 . . . Escape Stasis . | . . . . . . . Rewire . | . . . . . . . Trap 97 | . . 1 90 . 6 . Miscellaneous . | . . . . . . . Route ------- -11/Scrapyard -10/Materials (discovered 5 exits: *Mat x3 / *Min x2) -10/Mines (discovered 2 exits: *Mat x2) -9/Materials (discovered 5 exits: [*Mat x3] / *Min / *Sto) -9/Mines (discovered 4 exits: [*Mat x2] / *Exi / [*Zio]) -9/Exiles (discovered 2 exits: [*Min x2]) -8/Mines History --------- Turn | Location | Event 11 | -11/Scrapyard | Discovered new exit (range 15) 254 | -11/Scrapyard | Entered Materials 315 | -10/Materials | Build established: Mutant 352 | -10/Materials | Discovered new exit (range 14) 500 | -10/Materials | Discovered new exit (range 5) 554 | -10/Materials | Discovered new exit (range 15) 631 | -10/Materials | Discovered new exit (range 16) 963 | -10/Materials | Discovered new exit (range 9) 1357 | -10/Materials | Entered Mines 1381 | -10/Mines | Met a Derelict bent on vengeance 1405 | -10/Mines | Learned Materials security intel 1421 | -10/Mines | Core integrity fell below 50% 1484 | -10/Mines | Found a hidden stash of uninstalled traps 1515 | -10/Mines | Met a Derelict who couldn't figure out how to use a Trap Extractor 1711 | -10/Mines | Assisted by bots powering up and referring to "LRC-V3" 1725 | -10/Mines | Learned location of Zion (-7) 1979 | -10/Mines | Discovered new exit (range 7) 2042 | -10/Mines | Discovered new exit (range 9) 2086 | -10/Mines | Entered Materials 2086 | -9/Materials | Accompanied by 4 allies 2086 | -9/Materials | Evolved 2 slots: Propulsion x1, Utility x1 2091 | -9/Materials | Led the pair of lost Derelicts to an unsafe place 3098 | -9/Materials | Discovered new exit (range 16) 3672 | -9/Materials | Discovered new exit (range 14) 3826 | -9/Materials | Discovered new exit (range 4) 4182 | -9/Materials | Central database locked down 4486 | -9/Materials | Discovered new exit (range 8) 4903 | -9/Materials | Build established: Trapper-Mutant 4995 | -9/Materials | Discovered new exit (range 15) 5168 | -9/Materials | Identified exit to Mines 5168 | -9/Materials | Identified exit to Storage 5469 | -9/Materials | Repaired Med. Armor Plating 5561 | -9/Materials | Repaired Hardlight Generator 5806 | -9/Materials | Entered Mines 5806 | -9/Mines | Accompanied by 1 ally 5845 | -9/Mines | Discovered new exit (range 6) 5896 | -9/Mines | Deemed a non-threat by the Exiles lab entrance 5896 | -9/Mines | Discovered new exit (range 5) 5992 | -9/Mines | Discovered new exit (range 15) 6060 | -9/Mines | Assembled infested the area 6065 | -9/Mines | Assisted by a Guerilla fighting off Assembled 6134 | -9/Mines | Destroyed 13 combat bots 6140 | -9/Mines | Learned Materials trap positions 6148 | -9/Mines | Received a Mining Laser from a helpful Derelict 6219 | -9/Mines | A Derelict revealed a hidden shortcut to a safe place 7074 | -9/Mines | Entered Exiles 7112 | -9/Exiles | Met 8R-AWN 7135 | -9/Exiles | Met EX-HEX 7215 | -9/Exiles | Met EX-DEC 7296 | -9/Exiles | Discovered new exit (range 10) 7382 | -9/Exiles | Met EX-BIN 7400 | -9/Exiles | Aligned with FarCom system 7401 | -9/Exiles | Given EX-Vault access code 7436 | -9/Exiles | Opened EX-Vault 7448 | -9/Exiles | Found Latent Energy Streamer 7480 | -9/Exiles | Warned to stay clear of 0b10 Research branches 7754 | -9/Exiles | Discovered new exit (range 15) 7914 | -9/Exiles | Attacked by the Exiles 8092 | -9/Exiles | Destroyed 8R-AWN 8117 | -9/Exiles | Found Prototype Device 8117 | -9/Exiles | Identified AS-neutralizer No. 17b 8139 | -9/Exiles | Found Prototype Ballistic Gun 8139 | -9/Exiles | Identified 8R-AWN's Boregun 8257 | -9/Exiles | Build established: Mutant 8398 | -9/Exiles | Destroyed EX-HEX 8471 | -9/Exiles | Destroyed EX-DEC 8520 | -9/Exiles | Destroyed EX-BIN 8556 | -9/Exiles | Found Prototype Device 8556 | -9/Exiles | Identified System Purifier 8593 | -9/Exiles | Found Prototype Processor 9103 | -9/Exiles | Found Supersonic Drone Bay 9108 | -9/Exiles | Found Lightpack 2.0 9236 | -9/Exiles | Found Prototype Processor 9667 | -9/Exiles | Stole three prototypes: Lightpack 2.0, Supersonic Drone Bay, Latent Energy Streamer 9667 | -9/Exiles | Entered Mines 9777 | -8/Mines | 7V-RTL came to Exiles' defense 9779 | -8/Mines | Core integrity fell below 50% 9802 | -8/Mines | Identified Exp. Core Analyzer 9820 | -8/Mines | Core integrity fell below 20% 9855 | -8/Mines | Destroyed by 7V-RTL with Dispersion Rifle Last Messages --------------- 09824_ Acquired Imp. Armor Integrity Analyzer. 09825_ System corrupted: Component data lost. 09825_ Penetrated by Slug. 09825_ Critical hit (Destroy). 09826_ HV Slug penetrates Wall. 09828_ Penetrated by Slug. 09829_ HV Slug penetrates 7V-RTL. 09831_ Wall collapses. 09832_ HV Slug penetrates Wall. 09833_ Penetrated by Slug. 09835_ HV Slug penetrates 7V-RTL. 09835_ 7V-RTL suffers critical hit (Destroy). 09835_ Destroyed Arm. Heavy Treads. 09838_ HV Slug penetrates 7V-RTL. 09841_ HV Slug penetrates Wall. 09841_ HV Slug penetrates Earth. 09842_ Penetrated by Slug. 09845_ Acquired 30 matter. 09853_ Dropped Rocket Launcher. 09855_ Penetrated by Slug. Map ----- +----------------------------------------------------+ | | | | | | | | | | | | | | | | | | | ?????#?????????????????????????? | | ????# ?????????????????????????? | | ????# ?????????????????????????? | | ????# ?????????????????????????? | | ????# ##???????????????????????? | | ????# # #??????????????????????? | | ??###;;;##?????????????????????? | | ??# #?????????????????????? | | ??# " #?????????????????????? | | ??# !!! #?????????????????????? | | ??#![=!! #?????????????????????? | | ??#]/ !! #?????????????????????? | | ??#!!!! #?????????????????????? | | ??# !*! #?????????????????????? | | ??# #?????????????????????? | | ??# #?????????????????????? | | ??# @]#?????????????????????? | | ??### ;###?????????????????????? | | ???#; ;#???????????????????????? | | ??# ; #???????????????????????? | | ??##;Y #???????????????????????? | | ???## #???????????????????????? | | ???# ##???????????????????????? | | ???# ????????????????????????? | | ???# # ????????????????????????? | | ???## ????????????????????????? | | ????? ????????????????????????? | | ????? ?????????????????????????? | | ???????????????????????????????? | | ???????????????????????????????? | | ???????????????????????????????? | | ???????????????????????????????? | | ???????????????????????????????? | | ???????????????????????????????? | | ???????????????????????????????? | | ???????????????????????????????? | | ???????????????????????????????? | | ???????????????????????????????? | | ???????????????????????????????? | | ???????????????????????????????? | | ???????????????????????????????? | +----------------------------------------------------+ Best States ------------- Heat Dissipation 28 Energy Generation 17 Energy Capacity 280 Matter Stores 300 Matter Capacity 300 Sight Range 16 Terrain Scan Density 10 Corruption Containment 12 Armor Coverage 300 Resistance: TH 10 Weapon Shielding 66 Evasion (%) 40 Core Analysis 8 Armor Integrity Analysis 40 Recoil Reduction 3 Trap Extractor Capacity 6 Item Schematics ----------------- Huge Storage Unit | -10/Materials | Hacked Hcp. Storage Unit | -10/Materials | Hacked Lrn. Tractor Beam | -9/Materials | Scanalyzed Robot Schematics ------------------ None Fabricated ------------ Nothing Alien Tech Used ----------------- None Achievements -------------- None Challenges ------------ None Game ------ Seed HeavyGodShredder Manual? 0 Play Time 01:23:30 Cumulative 522.7 hours Start 2022.04.20 @ 18:53:19 End 2022.04.20 @ 20:47:38 Sessions 3 Manual Loads 0 Difficulty Rogue Special Mode None Game No. 169 Rogue 165 Adventurer 4 Explorer 0 Win Type - Total 13 Types 6/2/3/0/0/0/1/1/0 Lore% 82 Gallery% 86 Achievement% 73 Wizard Run 0 Options --------- ASCII 1 Keyboard 0 Movement Arrows Keybinds 0 Fullscreen 1 Font 18/SmallcapsGlow Map View 76x50 Tactical HUD 1 Map Filters NONE Filters NONE Steam 1 RUN: 6b880d14-5cdf-4f3d-bcea-de485f1d9ed6